fUSD/lending_fUSD_20250823
["ID","MTS","AMOUNT","RATE_DAILY","PERIOD"]
[381032857,1755961839986,-663.03278253,0.00016553,2]
[381032858,1755961839995,-151.0,0.00016564,2]
[381032859,1755961840006,-500.0,0.00016567,2]
[381032860,1755961840017,-500.0,0.00016588,2]
[381032861,1755961840030,-151.0,0.00016591,2]
[381032862,1755961840040,-151.0,0.00016591,2]
[381032863,1755961840049,-151.0,0.000166,2]
[381032864,1755961840060,-500.0,0.0001661,2]
[381032865,1755961840069,-151.0,0.00016622,2]
[381032866,1755961840079,-663.03278243,0.00016624,2]
[381032867,1755961840088,-500.0,0.00016631,2]
[381032868,1755961840098,-500.0,0.00016652,2]
[381032869,1755961840107,-500.0,0.00016674,2]
[381032870,1755961840117,-712.27,0.00016688,2]
[381032871,1755961840126,-663.03278243,0.00016695,2]
[381032872,1755961840135,-500.0,0.00016695,2]
[381032873,1755961840145,-158.44,0.00016712,2]
[381032874,1755961840155,-500.0,0.00016717,2]
[381032875,1755961840166,-500.0,0.00016738,2]
[381032876,1755961840175,-500.0,0.00016759,2]
[381032877,1755961840186,-663.03278243,0.00016766,2]
[381032878,1755961840195,-300.0,0.00016766,2]
[381032879,1755961840206,-500.0,0.00016781,2]
[381032880,1755961840215,-154.0,0.000168,2]
[381032881,1755961840225,-154.0,0.000168,2]
[381032882,1755961840235,-154.0,0.000168,3]
[381032883,1755961840245,-500.0,0.00016802,2]
[381032884,1755961840255,-500.0,0.00016824,2]
[381032885,1755961840264,-663.03278243,0.00016837,2]
[381032886,1755961840273,-500.0,0.00016845,2]
[381032887,1755961840283,-500.0,0.00016866,2]
[381032888,1755961840293,-500.0,0.00016888,2]
[381032889,1755961840302,-663.03278243,0.00016907,2]
[381032890,1755961840312,-500.0,0.00016909,2]
[381032891,1755961840321,-500.0,0.00016931,2]
[381032892,1755961840330,-300.0,0.00016939,3]
[381032893,1755961840340,-500.0,0.00016952,2]
[381032894,1755961840350,-500.0,0.00016973,2]
[381032895,1755961840359,-663.03278243,0.00016978,2]
[381032896,1755961840368,-500.0,0.00016995,2]
[381032897,1755961840379,-300.0,0.00017,2]
[381032898,1755961840388,-500.0,0.00017016,2]
[381032899,1755961840398,-500.0,0.00017038,2]
[381032900,1755961840407,-663.03278243,0.00017049,2]
[381032901,1755961840417,-500.0,0.00017059,2]
[381032902,1755961840426,-500.0,0.0001708,2]
[381032903,1755961840435,-29252.52,0.000171,2]
[381032904,1755961840445,-5850.5,0.000171,2]
[381032905,1755961840455,-500.0,0.00017102,2]
[381032906,1755961840464,-663.03278243,0.0001712,2]
[381032907,1755961840475,-500.0,0.00017123,2]
[381032908,1755961840484,-500.0,0.00017145,2]
[381032909,1755961840494,-500.0,0.00017166,2]
[381032910,1755961840503,-281.0,0.00017177,2]
[381032911,1755961840512,-500.0,0.00017188,2]
[381032912,1755961840523,-663.03278243,0.00017191,2]
[381032913,1755961840532,-500.0,0.00017209,2]
[381032914,1755961840542,-500.0,0.0001723,2]
[381032915,1755961840553,-500.0,0.00017252,2]
[381032916,1755961840562,-663.03278243,0.00017262,2]
[381032917,1755961840572,-500.0,0.00017273,2]
[381032918,1755961840581,-500.0,0.00017295,2]
[381032919,1755961840590,-1000.0,0.000173,2]
[381032920,1755961840600,-500.0,0.00017316,2]
[381032921,1755961840610,-663.03278243,0.00017333,2]
[381032922,1755961840619,-500.0,0.00017337,2]
[381032923,1755961840628,-497.26,0.00017352,2]
[381032924,1755961840638,-500.0,0.00017359,2]
[381032925,1755961840647,-330.0,0.00017363,2]
[381032926,1755961840656,-500.0,0.0001738,2]
[381032927,1755961840666,-574.32739646,0.00017395,2]
[381032928,1755961840675,-160.50645657,0.00017395,2]
[381032929,1755961840684,-5000.0,0.00017395,2]
[381032930,1755961840693,-3324.148,0.000174,2]
[381032931,1755961840702,-401.027,0.000174,2]
[381032932,1755961840712,-500.0,0.00017402,2]
[381032933,1755961840721,-663.03278243,0.00017404,2]
[381032934,1755961840731,-500.0,0.00017423,2]
[381032935,1755961840741,-500.0,0.00017444,2]
[381032936,1755961840750,-712.27,0.00017447,2]
[381032937,1755961840760,-1000.0,0.00017451,2]
[381032938,1755961840769,-635.66305466,0.00017459,2]
[381032939,1755961840779,-500.0,0.00017466,2]
[381032940,1755961840789,-500.0,0.00017473,2]
[381032941,1755961840799,-663.03278243,0.00017475,2]
[381032942,1755961840808,-159.67,0.00017475,2]
[381032943,1755961840818,-159.67,0.00017485,2]
[381032944,1755961840828,-159.67,0.00017485,2]
[381032945,1755961840838,-159.67,0.00017485,2]
[381032946,1755961840847,-159.67,0.00017485,2]
[381032947,1755961840858,-500.0,0.00017487,2]
[381032948,1755961840868,-1230.0,0.00017495,2]
[381032949,1755961840878,-193.97578879,0.00017495,7]
[381032950,1755961840888,-72392.85986462,0.00017495,7]
[381032951,1755961840898,-921513.1551881,0.00017495,2]
[381032952,1755961841621,-3808.13376933,0.00017495,2]
[381032953,1755961841633,-613.06230003,0.00017495,2]
[381032954,1755961841671,-150.0,0.000166,3]
[381032955,1755961841680,-1881.04555728,0.00017495,2]
[381032959,1755961842873,-344.10978337,0.00017475,2]
[381032960,1755961842886,-2257.32757953,0.00017475,2]
[381032961,1755961842896,-479416.74773636,0.00017495,2]
[381032962,1755961842906,-200.0,0.00017495,2]
[381032963,1755961842917,-200.0,0.00017495,2]
[381032964,1755961842928,-200.0,0.00017495,2]
[381032965,1755961842938,-6673.97,0.000175,2]
[381032966,1755961842948,-166.66666667,0.000175,2]
[381032967,1755961842958,-212.10093811,0.000175,7]
[381032968,1755961842968,-458.60200496,0.000175,7]
[381032969,1755961842982,-500.0,0.00017509,2]
[381032970,1755961842992,-500.0,0.0001753,2]
[381032971,1755961843002,-663.03278243,0.00017546,2]
[381032972,1755961843012,-334.5472959,0.00017551,2]
[381032973,1755961843023,-287.61899177,0.00017551,2]
[381032975,1755961843033,-500.0,0.00017551,2]
[381032977,1755961843044,-534.0,0.00017553,2]
[381032979,1755961843055,-392.0,0.00017557,2]
[381032981,1755961843065,-718.0,0.00017569,2]
[381032983,1755961843075,-4153.0,0.00017569,2]
[381032985,1755961843085,-21510.0,0.00017569,2]
[381032987,1755961843095,-500.0,0.00017573,2]
[381032989,1755961843106,-500.0,0.00017594,2]
[381032990,1755961843116,-534.0,0.000176,2]
[381032991,1755961843126,-185.0,0.000176,2]
[381032992,1755961843137,-1000.0,0.000176,2]
[381032993,1755961843147,-500.0,0.00017616,2]
[381032994,1755961843157,-663.03278243,0.00017616,2]
[381032995,1755961843167,-500.0,0.00017637,2]
[381032996,1755961843178,-534.0,0.00017644,2]
[381032997,1755961843188,-500.0,0.00017658,2]
[381032998,1755961843198,-500.0,0.0001768,2]
[381032999,1755961843208,-663.03278243,0.00017687,2]
[381033000,1755961843218,-880.81066434,0.0001769,2]
[381033001,1755961843228,-534.0,0.00017696,2]
[381033002,1755961843238,-500.0,0.00017701,2]
[381033003,1755961843248,-150.0,0.00017722,2]
[381033004,1755961843259,-1298.0,0.00017722,2]
[381033005,1755961843269,-1657.0,0.00017722,2]
[381033006,1755961843279,-566.0,0.00017722,2]
[381033007,1755961843289,-500.0,0.00017723,2]
[381033008,1755961843300,-500.0,0.00017744,2]
[381033009,1755961843310,-534.0,0.00017745,2]
[381033010,1755961843320,-663.03278243,0.00017758,2]
[381033011,1755961843330,-500.0,0.00017765,2]
[381033012,1755961843340,-534.0,0.0001778,2]
[381033013,1755961843351,-500.0,0.00017787,2]
[381033014,1755961843361,-2000.0,0.000178,2]
[381033015,1755961843372,-154.0,0.000178,3]
[381033016,1755961843382,-154.0,0.000178,3]
[381033017,1755961843392,-500.0,0.00017806,2]
[381033018,1755961843402,-500.0,0.00017808,2]
[381033019,1755961843412,-534.0,0.00017818,2]
[381033020,1755961843422,-534.0,0.0001782,2]
[381033021,1755961843432,-635.84091,0.0001782,2]
[381033022,1755961843442,-663.03278243,0.00017829,2]
[381033024,1755961843452,-150.0,0.0001788,3]
[381033026,1755961843462,-663.03278243,0.000179,2]
[381033029,1755961843473,-9129.24985383,0.000179,2]
[381033031,1755961843483,-635.84092,0.0001793,2]
[381033033,1755961843493,-150.0,0.00017936,2]
[381033035,1755961843503,-150.0,0.00017936,2]
[381033037,1755961843513,-150.0,0.00017936,2]
[381033039,1755961843523,-150.78898935,0.00017936,2]
[381033040,1755961843532,-150.0,0.00017936,2]
[381033041,1755961843542,-500.0,0.00017936,2]
[381033042,1755961843552,-150.0,0.00017936,2]
[381033043,1755961843562,-500.0,0.00017936,2]
[381033044,1755961843572,-150.0,0.00017936,2]
[381033045,1755961843582,-1349.0,0.00017936,2]
[381033046,1755961843592,-500.0,0.00017936,2]
[381033047,1755961843603,-150.0,0.00017936,2]
[381033048,1755961843613,-150.0,0.00017936,2]
[381033049,1755961843625,-150.0,0.00017936,2]
[381033050,1755961843635,-500.0,0.00017936,2]
[381033051,1755961843646,-300.0,0.00017936,2]
[381033052,1755961843656,-150.0,0.00017936,2]
[381033053,1755961843666,-150.0,0.00017936,2]
[381033054,1755961843676,-150.0,0.00017936,2]
[381033055,1755961843686,-200.0,0.00017936,2]
[381033056,1755961843698,-500.0,0.00017936,2]
[381033057,1755961843708,-500.0,0.00017936,2]
[381033058,1755961843718,-534.0,0.00017971,2]
[381033059,1755961843728,-18304.0,0.00017973,2]
[381033060,1755961843739,-500.0,0.00017973,2]
[381033061,1755961843749,-500.0,0.00017973,2]
[381033062,1755961843760,-500.0,0.00017973,2]
[381033063,1755961843770,-900.0,0.00017976,2]
[381033064,1755961843780,-900.0,0.00017976,2]
[381033065,1755961843791,-900.0,0.00017976,2]
[381033066,1755961843801,-900.0,0.00017976,2]
[381033067,1755961843810,-900.0,0.00017976,2]
[381033068,1755961843821,-900.0,0.00017976,2]
[381033069,1755961843831,-900.0,0.00017976,2]
[381033070,1755961843840,-900.0,0.00017976,2]
[381033071,1755961843850,-534.0,0.0001798,2]
[381033072,1755961843861,-900.0,0.00017984,2]
[381033073,1755961843871,-900.0,0.00017984,2]
[381033074,1755961843881,-900.0,0.00017984,2]
[381033075,1755961843891,-900.0,0.00017984,2]
[381033076,1755961843901,-900.0,0.00017984,2]
[381033077,1755961843911,-900.0,0.00017984,2]
[381033078,1755961843921,-900.0,0.00017984,2]
[381033079,1755961843931,-900.0,0.00017984,2]
[381033080,1755961843941,-1202.0251621,0.00017987,2]
[381033081,1755961843952,-8246.8198877,0.00017987,2]
[381033082,1755961843962,-1377.03980635,0.0001799,3]
[381033083,1755961843972,-719.1620728,0.0001799,2]
[381033084,1755961843985,-46749.3700129,0.00017991,2]
[381033085,1755961843995,-169.0799239,0.00017991,2]
[381033086,1755961844005,-757.7636463,0.00017991,2]
[381033087,1755961844014,-150.0,0.00017995,3]
[381033088,1755961844025,-2000.0,0.00017999,2]
[381033089,1755961844035,-2000.0,0.00017999,2]
[381033090,1755961844044,-2000.0,0.00017999,2]
[381033091,1755961844054,-300.0,0.00017999,2]
[381033092,1755961844066,-937.67740559,0.00018,4]
[381033093,1755961844077,-1580.0,0.00018,5]
[381033094,1755961844087,-9997.5274221,0.00018,2]
[381033095,1755961844107,-5434.32,0.00018,2]
[381033096,1755961844617,-5925.9072,0.00018,2]
[381033097,1755961844628,-139681.65934563,0.00018,2]
[381033098,1755961844647,-1136.29584182,0.00018,2]
[381033104,1755961845676,-150.0,0.00017975,3]
[381033105,1755961845686,-2049.32845028,0.00018,2]
[381033106,1755961845698,-508.1826822,0.00018,2]
[381033107,1755961845776,-87250.43268362,0.00018,2]
[381033108,1755961845788,-40933.64277071,0.00018,2]
[381033109,1755961845799,-3264.58290377,0.00018,2]
[381033110,1755961845811,-22994.972,0.00018,2]
[381033111,1755961845928,-43002.70929424,0.00018,2]
[381033112,1755961846142,-2783.2,0.00018,2]
[381033113,1755961846154,-2949.27654831,0.00018,2]
[381033114,1755961846166,-2637.83358895,0.00018,2]
[381033115,1755961846178,-11012.64245956,0.00018,2]
[381033133,1755962314862,482.87047098,0.00028767,120]
[381033134,1755962322571,20000.0,0.00028767,120]
[381033135,1755962323787,482.86,0.00028767,120]
[381033136,1755962332340,482.86,0.00028767,120]
[381033139,1755962342666,482.86,0.00028767,120]
[381033140,1755962356791,500.0,0.00028767,120]
[381033141,1755962405867,183.0,0.00026408,120]
[381033142,1755962407659,183.0,0.00027729,120]
[381033171,1755962533291,1721.37301526,0.00028767,120]
[381033175,1755962692158,458.8,0.00028767,120]
[381033176,1755962730205,499.43,0.000287,120]
[381033177,1755962736598,3700.0,9e-05,2]
[381033178,1755962736622,578.77553925,9e-05,2]
[381033179,1755962762886,12110.59906316,8e-05,2]
[381033180,1755962788274,764.64624636,9e-05,2]
[381033189,1755963032128,-364.74788412,0.00011775,2]
[381033190,1755963032138,-195.78571587,0.0001185,2]
[381033191,1755963032147,-250.0,0.00011862,2]
[381033192,1755963032157,-200.0,0.00011863,2]
[381033193,1755963032166,-397.81,0.00011863,2]
[381033194,1755963032176,-2000.0,0.00011874,3]
[381033195,1755963032186,-250.0,0.00011884,2]
[381033196,1755963032195,-1200.0,0.00011899,2]
[381033197,1755963032205,-160.50645657,0.000119,2]
[381033198,1755963032215,-1888.09138296,0.000119,2]
[381033199,1755963032226,-3817.75138379,0.000119,2]
[381033200,1755963032236,-408.08647954,0.000119,2]
[381033201,1755963032245,-310.0,0.0001195,2]
[381033202,1755963032254,-500.0,0.00011973,2]
[381033203,1755963032263,-310.0,0.0001198,2]
[381033204,1755963032272,-749.0,0.00011999,2]
[381033205,1755963032282,-193.97578879,0.00012,2]
[381033206,1755963032291,-66819.22831553,0.00012,2]
[381033207,1755963032302,-29336.13357171,0.00012,2]
[381033208,1755963032320,-6250.45086891,0.00012,2]
[381033210,1755963032330,-52183.86282039,0.00012,2]
[381033215,1755963032360,-412.64213996,0.00012,2]
[381033221,1755963032388,-14676.99999999,0.00012,2]
[381033223,1755963032399,-2828.6851711,0.00012,2]
[381033226,1755963032422,-4200.0,0.00012,2]
[381033229,1755963032434,-284.23252147,0.00012,2]
[381033280,1755963038646,-171.74847025,0.00011898,2]
[381033281,1755963038656,-2386503.65973935,0.00012,2]
[381033282,1755963038666,-6006.58,0.00012,2]
[381033283,1755963038676,-151.0,0.00012,2]
[381033284,1755963038685,-302.0,0.00012,2]
[381033285,1755963038695,-175566.53,0.00012,2]
[381033286,1755963038704,-1614658.41203174,0.00012,2]
[381033287,1755963038713,-4416.35166011,0.00012435,2]
[381033288,1755963038723,-1005.70033378,0.00012521,2]
[381033289,1755963038732,-504.0,0.00012806,2]
[381033290,1755963038741,-229.11072785,0.00012875,2]
[381033291,1755963038751,-829.0,0.00012891,2]
[381033292,1755963038761,-303.36,0.00012933,2]
[381033293,1755963038770,-303.62,0.00013006,2]
[381033294,1755963038780,-500.0,0.00013006,2]
[381033295,1755963038789,-200.0,0.00013006,2]
[381033296,1755963038798,-160.50645651,0.00013011,2]
[381033297,1755963038808,-431.08,0.00013014,2]
[381033298,1755963038818,-419.23,0.00013014,2]
[381033299,1755963038827,-424.1,0.00013014,2]
[381033300,1755963038837,-305.23,0.00013014,2]
[381033301,1755963038846,-426.42,0.00013014,2]
[381033302,1755963038856,-429.9,0.00013026,2]
[381033303,1755963038865,-423.56,0.00013026,2]
[381033304,1755963038875,-431.09,0.00013026,2]
[381033305,1755963038885,-302.98,0.00013026,2]
[381033306,1755963038895,-2000.0,0.00013035,3]
[381033307,1755963038905,-150.0,0.00013035,2]
[381033308,1755963038914,-250.0,0.00013035,2]
[381033309,1755963038924,-310.0,0.00013035,2]
[381033310,1755963038933,-302.5,0.00013048,2]
[381033311,1755963038942,-425.18,0.0001305,2]
[381033312,1755963038951,-426.29,0.0001305,2]
[381033313,1755963038960,-300.68,0.0001305,2]
[381033314,1755963038970,-429.07,0.00013053,2]
[381033315,1755963038980,-419.94,0.00013053,2]
[381033316,1755963038990,-303.35,0.00013054,2]
[381033317,1755963038999,-417.49,0.00013063,2]
[381033318,1755963039009,-429.87,0.00013063,2]
[381033319,1755963039018,-303.61,0.00013065,2]
[381033320,1755963039028,-426.41,0.00013087,2]
[381033321,1755963039038,-419.68,0.00013087,2]
[381033322,1755963039048,-424.55,0.00013087,2]
[381033323,1755963039058,-150.0,0.0001309,2]
[381033324,1755963039067,-310.0,0.0001309,2]
[381033325,1755963039077,-301.47,0.00013147,2]
[381033326,1755963039087,-421.33,0.00013147,2]
[381033327,1755963039097,-424.11,0.00013147,2]
[381033328,1755963039106,-421.77,0.00013147,2]
[381033329,1755963039116,-300.72,0.00013147,2]
[381033330,1755963039126,-428.31,0.00013147,2]
[381033331,1755963039135,-431.93,0.00013147,2]
[381033332,1755963039145,-430.53,0.00013148,2]
[381033333,1755963039155,-428.7,0.00013148,2]
[381033334,1755963039164,-429.23,0.00013148,2]
[381033335,1755963039174,-301.57,0.00013148,2]
[381033336,1755963039183,-303.04,0.00013148,2]
[381033337,1755963039193,-305.66,0.00013148,2]
[381033338,1755963039202,-418.94,0.00013149,2]
[381033339,1755963039212,-425.16,0.00013149,2]
[381033340,1755963039221,-428.67,0.00013149,2]
[381033341,1755963039231,-432.55,0.00013149,2]
[381033342,1755963039240,-423.71,0.00013152,2]
[381033343,1755963039250,-420.5,0.00013152,2]
[381033344,1755963039260,-305.38,0.00013162,2]
[381033345,1755963039269,-301.68,0.00013162,2]
[381033346,1755963039278,-433.39,0.00013181,2]
[381033347,1755963039288,-427.53,0.00013181,2]
[381033348,1755963039297,-431.3,0.00013181,2]
[381033349,1755963039306,-425.71,0.00013181,2]
[381033350,1755963039316,-303.85,0.00013247,2]
[381033351,1755963039326,-416.83,0.00013247,2]
[381033352,1755963039335,-429.58,0.00013247,2]
[381033353,1755963039349,-302.08,0.00013247,2]
[381033354,1755963039359,-427.64,0.00013247,2]
[381033355,1755963039368,-419.91,0.00013247,2]
[381033356,1755963039377,-433.25,0.00013247,2]
[381033357,1755963039387,-417.27,0.00013247,2]
[381033358,1755963039396,-426.19,0.00013247,2]
[381033359,1755963039405,-302.48,0.00013247,2]
[381033360,1755963039416,-429.98,0.00013247,2]
[381033361,1755963039426,-152.48,0.00013247,2]
[381033362,1755963039436,-152.67,0.00013247,2]
[381033363,1755963039445,-425.76,0.00013247,2]
[381033364,1755963039455,-420.7,0.00013247,2]
[381033365,1755963039465,-304.84,0.00013247,2]
[381033366,1755963039474,-433.17,0.00013247,2]
[381033367,1755963039484,-427.97,0.00013247,2]
[381033368,1755963039493,-301.1,0.00013252,2]
[381033369,1755963039502,-300.77,0.00013252,2]
[381033370,1755963039512,-432.8,0.00013258,2]
[381033371,1755963039521,-500.0,0.0001328,2]
[381033372,1755963039531,-151.17,0.00013293,2]
[381033373,1755963039540,-301.02,0.00013303,2]
[381033374,1755963039550,-152.33,0.00013309,2]
[381033375,1755963039560,-150.1,0.00013309,2]
[381033376,1755963039570,-433.05,0.0001331,2]
[381033377,1755963039580,-418.06,0.0001331,2]
[381033378,1755963039589,-422.15,0.0001331,2]
[381033379,1755963039598,-430.55,0.0001331,2]
[381033380,1755963039608,-427.29,0.00013329,2]
[381033381,1755963039618,-304.8,0.00013329,2]
[381033382,1755963039628,-430.65,0.00013329,2]
[381033383,1755963039638,-305.82,0.0001334,2]
[381033384,1755963039647,-397.81,0.00013345,2]
[381033385,1755963039656,-425.78,0.00013347,2]
[381033386,1755963039666,-431.06,0.00013347,2]
[381033387,1755963039675,-426.53,0.00013347,2]
[381033388,1755963039685,-250.0,0.00013361,2]
[381033389,1755963039694,-151.98,0.00013388,2]
[381033390,1755963039703,-151.98,0.00013388,2]
[381033391,1755963039713,-152.4,0.00013388,2]
[381033392,1755963039723,-428.48,0.00013389,2]
[381033393,1755963039734,-431.86,0.00013389,2]
[381033394,1755963039744,-416.87,0.00013389,2]
[381033395,1755963039754,-420.44,0.00013389,2]
[381033396,1755963039763,-418.56,0.00013389,2]
[381033397,1755963039773,-419.52,0.00013389,2]
[381033398,1755963039782,-418.57,0.00013389,2]
[381033399,1755963039792,-420.84,0.00013389,2]
[381033400,1755963039804,-429.37,0.00013389,2]
[381033401,1755963039814,-2000.0,0.00013389,2]
[381033402,1755963039823,-150.37,0.00013389,2]
[381033403,1755963039833,-418.95,0.00013389,2]
[381033404,1755963039843,-427.18,0.00013389,2]
[381033405,1755963039857,-425.4,0.00013389,2]
[381033406,1755963039868,-425.45,0.00013389,2]
[381033407,1755963039883,-432.15,0.00013389,2]
[381033408,1755963039898,-427.18,0.00013389,2]
[381033409,1755963039908,-150.92,0.00013389,2]
[381033410,1755963039917,-420.06,0.00013389,2]
[381033411,1755963039927,-422.1,0.00013389,2]
[381033412,1755963039936,-432.12,0.00013389,2]
[381033413,1755963039945,-416.81,0.00013389,2]
[381033414,1755963039955,-428.87,0.00013389,2]
[381033415,1755963039964,-150.32,0.00013389,2]
[381033416,1755963039975,-432.99,0.00013389,2]
[381033417,1755963039985,-420.97,0.00013389,2]
[381033418,1755963039995,-1000.0,0.00013535,2]
[381033419,1755963040005,-2000.0,0.00013629,2]
[381033420,1755963040015,-151.0,0.00013699,2]
[381033421,1755963040025,-1000.0,0.00013699,2]
[381033422,1755963040035,-1000.0,0.00013699,2]
[381033423,1755963040044,-200.0,0.00013699,2]
[381033424,1755963040054,-427.36,0.00013699,2]
[381033425,1755963040064,-276.85,0.000137,2]
[381033426,1755963040074,-276.85,0.000137,2]
[381033427,1755963040084,-276.85,0.000137,2]
[381033428,1755963040093,-276.85,0.000137,2]
[381033429,1755963040102,-276.85,0.000137,2]
[381033430,1755963040111,-664.02,0.00013806,2]
[381033431,1755963040122,-1000.0,0.00013828,2]
[381033432,1755963040131,-1523.0,0.00013919,2]
[381033433,1755963040141,-207.07923564,0.00014,7]
[381033434,1755963040150,-160.50645651,0.00014122,2]
[381033435,1755963040160,-844.27675029,0.00014311,2]
[381033436,1755963040170,-212.10093811,0.00014313,2]
[381033437,1755963040179,-160.0,0.00014313,2]
[381033438,1755963040189,-458.60200496,0.00014313,2]
[381033439,1755963040198,-1500.0,0.00014376,2]
[381033440,1755963040208,-427.36,0.00014384,2]
[381033441,1755963040218,-2000.0,0.00014568,2]
[381033442,1755963040229,-501.96369864,0.00014674,2]
[381033443,1755963040239,-397.81,0.00014828,2]
[381033444,1755963040249,-6006.58,0.000149,2]
[381033445,1755963040259,-175566.53,0.000149,2]
[381033446,1755963040269,-2005.00206983,0.00014924,2]
[381033447,1755963040278,-501.96369864,0.00014982,2]
[381033448,1755963040288,-300.0,0.00015068,2]
[381033449,1755963040604,-427.36,0.00015068,2]
[381033450,1755963040615,-566.0,0.00015152,2]
[381033451,1755963040624,-1298.0,0.00015152,2]
[381033452,1755963040634,-1657.0,0.00015152,2]
[381033453,1755963040644,-599.0,0.00015152,2]
[381033454,1755963040653,-1172.0,0.00015152,2]
[381033455,1755963040663,-894.0,0.00015152,2]
[381033456,1755963040673,-6092.0,0.00015152,2]
[381033457,1755963040683,-3372.0,0.00015152,2]
[381033458,1755963040693,-2030.0,0.00015152,2]
[381033459,1755963040702,-4153.0,0.00015152,2]
[381033460,1755963040712,-884.0,0.00015152,2]
[381033461,1755963040721,-1000.0,0.00015226,2]
[381033462,1755963040732,-160.50645651,0.00015233,2]
[381033463,1755963040741,-501.96369864,0.0001529,2]
[381033464,1755963040751,-428.68,0.00015511,2]
[381033465,1755963040761,-423.11,0.00015511,2]
[381033466,1755963040770,-423.91,0.00015511,2]
[381033467,1755963040779,-428.83,0.00015511,2]
[381033468,1755963040788,-2000.0,0.00015511,2]
[381033469,1755963040797,-501.96369864,0.00015599,2]
[381033470,1755963040806,-427.36,0.00015753,2]
[381033471,1755963040815,-501.96369864,0.00015907,2]
[381033472,1755963040824,-222.93,0.00015928,2]
[381033473,1755963040834,-799.21,0.00016164,2]
[381033474,1755963040843,-799.21,0.00016164,2]
[381033475,1755963040854,-799.21,0.00016164,2]
[381033476,1755963040872,-322.6107,0.00016182,2]
[381033477,1755963040883,-170.63411567,0.00016182,2]
[381033478,1755963040893,-721.12765535,0.00016182,2]
[381033479,1755963040910,-1000.0,0.00016182,2]
[381033480,1755963040919,-1000.0,0.00016182,2]
[381033481,1755963040929,-1000.0,0.00016182,2]
[381033482,1755963040938,-1000.0,0.00016182,2]
[381033483,1755963040948,-1000.0,0.00016182,2]
[381033484,1755963040957,-1000.0,0.00016182,2]
[381033485,1755963040967,-1000.0,0.00016182,2]
[381033486,1755963040978,-1000.0,0.00016182,2]
[381033487,1755963040987,-225.93613621,0.00016182,2]
[381033488,1755963040997,-1000.0,0.00016182,2]
[381033489,1755963041007,-1000.0,0.00016182,2]
[381033490,1755963041016,-1000.0,0.00016182,2]
[381033491,1755963041026,-1000.0,0.00016182,2]
[381033492,1755963041036,-277.35679052,0.00016182,2]
[381033493,1755963041046,-501.96369864,0.00016215,2]
[381033494,1755963041055,-397.81,0.00016311,2]
[381033495,1755963041066,-160.50645651,0.00016344,2]
[381033496,1755963041076,-151.0,0.00016371,2]
[381033497,1755963041085,-151.0,0.00016381,2]
[381033498,1755963041095,-151.0,0.0001639,2]
[381033499,1755963041104,-2878.56,0.000164,2]
[381033500,1755963041114,-151.0,0.00016405,2]
[381033501,1755963041123,-151.0,0.00016438,2]
[381033502,1755963041133,-300.0,0.00016438,2]
[381033503,1755963041143,-500.0,0.00016438,2]
[381033504,1755963041152,-427.36,0.00016438,2]